[Event "93rd German Championship 2022"]
[Site "Magdeburg"]
[Date "2022.08.17"]
[Round "5.17"]
[White "Hourigan, Gerrit"]
[Black "Farokhi, Keyvan"]
[Result "1-0"]
[ECO "A05"]
[WhiteElo "2306"]
[BlackElo "2332"]
[Annotator "TA"]
[PlyCount "78"]
[EventDate "2022.08.14"]
[EventType "swiss"]
[EventCountry "GER"]
[SourceTitle "playchess.com"]
[Source "ChessBase"]
[SourceQuality "1"]
[TimeControl "40/5400+30:1800+30"]

{[%evp 13,78,14,7,0,19,19,18,12,8,23,16,16,14,7,11,0,18,8,14,0,0,0,0,-97,-83,-91,-91,-91,-65,-109,-70,-63,0,0,0,0,0,0,0,-12,0,0,0,0,0,0,0,0,0,-14,0,-29,114,112,356,112,29990,-820,29984,67,29993,352,29994,29994,29994,-250,29995]} 1. Nf3 {[%emt 0:00:10]} Nf6 {[%emt 0:00:07]} 2. c4 {[%emt 0:00:06]} e6 {[%emt 0:00:41]} 3. g3 {[%emt 0:00:16]} d5 {[%emt 0:00:15]} 4. Bg2 {[%emt 0:00:05]} Be7 {[%emt 0:00:06]} 5. d4 {[%emt 0:00:28]} O-O {[%emt 0:00:11]} 6. O-O {[%emt 0:00:04]} dxc4 {[%emt 0:00:11]} 7. Qc2 {[%emt 0:00:05]} b5 {[%emt 0:00:10]} 8. a4 {[%emt 0:00:18] E05: Open Catalan: 5 Nf3 Be7.} Bb7 {[%emt 0:00:10]} 9. axb5 {[%emt 0:02:01]} a6 {[%emt 0:00:06]} 10. bxa6 {[%emt 0:10:12] The position is equal.} Nxa6 {[%emt 0:00:12]} 11. Qxc4 {[%emt 0:02:16]} Bd5 {[%emt 0:00:12]} 12. Qc3 {[%emt 0:04:48]} c5 {[%emt 0:16:30]} 13. Bf4 {[%emt 0:28:53] [#]} Qb6 $146 {[%emt 0:11:33]} ({Predecessor:} 13... Ne4 14. Qc1 cxd4 15. Nxd4 Nec5 16. Bxd5 Qxd5 17. Be3 Qb7 18. Nd2 Rac8 19. Qb1 Nb4 {1-0 (36) Carlsen,M (2864)-Radjabov,T (2753) Stavanger 2022}) 14. dxc5 {[%emt 0:21:48]} Bxc5 {[%emt 0:00:23]} (14... Nxc5 $5 {[%cal Ra8a1]} 15. Rxa8 Rxa8 $11) 15. Nbd2 {[%emt 0:01:26]} Rfc8 {[%emt 0:06:32][%cal Oc5f2]} 16. Qd3 {[%emt 0:00:35]} Nb4 {[%emt 0:18:44]} 17. Rxa8 $1 {[%emt 0:01:12]} Bxa8 {[%emt 0:01:33]} 18. Qb3 {[%emt 0:04:14]} (18. Qb1 $11 {remains equal.}) 18... Bd5 {[%emt 0:00:43]} 19. Qd1 {[%emt 0:00:20]} Ng4 {[%emt 0:17:21][%cal Rg4f2]} 20. e3 {[%emt 0:05:52]} Nd3 {[%emt 0:06:44] ...Ngxf2 is the strong threat.} 21. Ne1 {[%emt 0:05:06]} Nxf4 22. gxf4 {[%emt 0:04:04] [#]} Bxe3 {[%emt 0:18:21]} 23. Qxg4 $11 {[%emt 0:04:22]} Bxg2 {[%emt 0:00:05]} 24. fxe3 {[%emt 0:00:26]} Bxf1 {[%emt 0:00:03]} 25. Nxf1 {[%emt 0:00:19]} Qxb2 {[%emt 0:00:08]} 26. Nd3 {[%emt 0:02:12]} Qb3 {[%emt 0:00:45][%mdl 1024] Black has compensation.} 27. Ne5 {[%emt 0:00:35]} f6 {[%emt 0:00:48]} 28. Nf3 {[%emt 0:01:04]} Rc1 {[%emt 0:00:34] Strongly threatening ...Qxe3+.} 29. Kg2 {[%emt 0:00:48]} Qd5 {[%emt 0:00:53]} 30. N1d2 {[%emt 0:00:30]} Kf7 {[%emt 0:00:20]} 31. Kg3 {[%emt 0:00:16]} Ra1 {[%emt 0:00:38]} 32. Kf2 {[%emt 0:00:10]} e5 {[%emt 0:00:58]} (32... Ra2 $11 {keeps the balance.} 33. Ke2 Kg8) 33. fxe5 $16 {[%emt 0:00:30] The board is on fire.} Ra3 $2 {[%emt 0:00:00]} (33... Ra2 $16 {was worth a try.}) 34. e4 $2 (34. Ne4 $18 {and White stays clearly on top. And now Nd6+ would win.} Ra8 35. exf6 gxf6 36. Qh4 Qa2+ 37. Kg3 Rg8+ 38. Kf4) 34... Ra8 $2 {[%emt 0:00:00][%mdl 8192] [#]} 35. Nd4 $4 {[%emt 0:00:00][%mdl 8192]} (35. exd5 {avoids the disaster.} Kf8 36. exf6 gxf6 37. Qd7 Re8 38. d6 h5 39. Qh7 Re6 40. d7) 35... fxe5 $4 {[%emt 0:00:00][%mdl 8192]} 36. N2f3 $2 {[%emt 0:00:00]} Rh8 $2 {[%emt 0:00:00][%mdl 8192]} 37. Nf5 $2 {[%emt 0:00:00]} (37. exd5 Re8 38. Qd7+ Kf6 39. Qxe8 g5 40. Nxe5 g4 41. Qe6+ Kg5 42. Nf7+ Kh5 43. Qh6#) 37... Rg8 $2 {[%emt 0:00:00]} (37... Qc5+ $18 38. Kg2 g6 39. Ng5+ Kf6) 38. Ng5+ {[%emt 0:00:00] Pair of Knights!} Ke8 {[%emt 0:00:00]} 39. Nf7 $4 {[%emt 0:00:00][%mdl 8192]} (39. exd5 {mates} Kd8 40. Qa4 Re8 41. Nf7+ Kc8 42. Qa8+ Kc7 43. Qa7+ Kc8 44. N5d6#) 39... Kf8 $4 {[%emt 0:00:00][%mdl 8192] Weighted Error Value: White=0.95/Black=1.15} 1-0

[Event "93rd German Championship 2022"]
[Site "Magdeburg"]
[Date "2022.08.17"]
[Round "5.18"]
[White "Boder, Jan"]
[Black "Stricker, Florian"]
[Result "1-0"]
[ECO "E62"]
[WhiteElo "2315"]
[BlackElo "2182"]
[Annotator "RC"]
[PlyCount "71"]
[EventDate "2022.08.14"]
[EventType "swiss"]
[EventCountry "GER"]
[SourceTitle "playchess.com"]
[Source "ChessBase"]
[SourceQuality "1"]
[TimeControl "40/5400+30:1800+30"]

1. c4 {[%emt 0:00:09]} d6 {[%emt 0:00:13]} 2. g3 {[%emt 0:00:22]} Nf6 {[%emt 0:00:05]} 3. Bg2 {[%emt 0:00:07]} g6 {[%emt 0:00:06]} 4. Nc3 {[%emt 0:00:09]} Bg7 {[%emt 0:00:10]} 5. d4 {[%emt 0:04:20]} Nc6 {[%emt 0:00:04]} 6. Nf3 {[%emt 0:05:12]} O-O {[%emt 0:00:15]} 7. O-O {[%emt 0:06:43]} Bf5 {[%emt 0:02:00]} 8. d5 {[%emt 0:02:25]} Na5 {[%emt 0:00:25]} 9. Nd4 {[%emt 0:01:51]} Bd7 {[%emt 0:00:05]} 10. b3 {[%emt 0:10:20]} c5 {[%emt 0:00:16]} 11. dxc6 {[%emt 0:01:58]} bxc6 {[%emt 0:00:45]} 12. Bb2 {[%emt 0:10:21]} Rb8 {[%emt 0:12:29]} 13. Qc1 {[%emt 0:04:46]} d5 {[%emt 0:14:42]} 14. cxd5 {[%emt 0:10:05]} cxd5 {[%emt 0:00:22]} 15. Rd1 {[%emt 0:00:47]} e6 {[%emt 0:10:42]} 16. e3 {[%emt 0:10:05]} Qb6 {[%emt 0:03:36]} 17. Ba3 {[%emt 0:02:08]} Rfc8 {[%emt 0:01:28]} 18. Qd2 {[%emt 0:00:08]} Be8 {[%emt 0:15:52]} 19. Rac1 {[%emt 0:02:19]} Nb7 {[%emt 0:09:48]} 20. Rc2 {[%emt 0:08:58]} Nd6 {[%emt 0:04:34]} 21. Rdc1 {[%emt 0:00:51]} Rd8 {[%emt 0:05:21]} 22. Qe2 {[%emt 0:10:13]} e5 {[%emt 0:04:34]} 23. Bc5 {[%emt 0:02:44]} Qxc5 {[%emt 0:05:07]} 24. Nxd5 {[%emt 0:00:09]} Qa3 {[%emt 0:00:20]} 25. Ne7+ {[%emt 0:01:05]} Kf8 {[%emt 0:07:10]} 26. Ndc6 {[%emt 0:00:01]} Bxc6 {[%emt 0:00:47]} 27. Nxc6 {[%emt 0:00:05]} e4 {[%emt 0:01:13]} 28. Rd1 {[%emt 0:02:17]} Rdc8 {[%emt 0:00:52]} 29. Nxb8 {[%emt 0:00:15]} Rxb8 {[%emt 0:00:04]} 30. Rc6 {[%emt 0:00:21]} Nfe8 {[%emt 0:00:21]} 31. Ra6 {[%emt 0:00:17]} Qc5 {[%emt 0:00:19]} 32. Qd2 {[%emt 0:00:58]} Nb5 {[%emt 0:01:20]} 33. Rc1 {[%emt 0:02:29]} Nc3 {[%emt 0:00:20]} 34. Bf1 {[%emt 0:00:05]} Qe5 {[%emt 0:00:52]} 35. Rxa7 {[%emt 0:00:54]} Nd6 {[%emt 0:00:15]} 36. Rxc3 {[%emt 0:00:37]} 1-0

[Event "93rd German Championship 2022"]
[Site "Magdeburg"]
[Date "2022.08.17"]
[Round "5.19"]
[White "Tschernatsch, Johannes"]
[Black "Westphal, Wolfgang"]
[Result "1-0"]
[ECO "B06"]
[WhiteElo "2296"]
[BlackElo "2175"]
[Annotator "NA RC"]
[PlyCount "61"]
[EventDate "2022.08.14"]
[EventType "swiss"]
[EventCountry "GER"]
[SourceTitle "playchess.com"]
[Source "ChessBase"]
[SourceQuality "1"]
[TimeControl "40/5400+30:1800+30"]

1. e4 {[%emt 0:00:02]} g6 {[%emt 0:00:17]} 2. d4 {[%emt 0:00:08]} Bg7 {[%emt 0:00:07]} 3. Nc3 {[%emt 0:00:12]} c6 {[%emt 0:00:29]} 4. f4 {[%emt 0:01:12]} d5 {[%emt 0:00:11]} 5. e5 {[%emt 0:00:07]} Nh6 {[%emt 0:01:19]} 6. Nf3 {[%emt 0:00:10]} Bg4 {[%emt 0:00:25]} 7. h3 {[%emt 0:00:49]} Bxf3 {[%emt 0:00:17]} 8. Qxf3 {[%emt 0:00:22]} Nf5 {[%emt 0:00:16]} 9. Ne2 {[%emt 0:02:17]} e6 {[%emt 0:00:24]} 10. g4 {[%emt 0:01:40]} Ne7 {[%emt 0:00:06]} 11. Ng3 {[%emt 0:03:51]} f6 {[%emt 0:05:49]} 12. f5 {[%emt 0:19:45]} exf5 {[%emt 0:10:20]} 13. gxf5 {[%emt 0:00:41]} O-O {[%emt 0:00:32]} 14. e6 {[%emt 0:02:35]} Qb6 {[%emt 0:03:02]} 15. c3 {[%emt 0:01:23]} c5 {[%emt 0:00:39]} 16. dxc5 {[%emt 0:00:44]} Qxc5 {[%emt 0:00:10]} 17. Be3 {[%emt 0:01:55]} Qa5 {[%emt 0:01:09]} 18. Bd3 {[%emt 0:09:27]} Nbc6 {[%emt 0:00:23]} 19. O-O {[%emt 0:00:37]} Ne5 {[%emt 0:01:37]} 20. Qe2 {[%emt 0:00:31]} Rac8 {[%emt 0:02:13]} 21. Bc2 {[%emt 0:13:14]} Qc7 {[%emt 0:07:31]} 22. Qf2 {[%emt 0:03:01]} a6 {[%emt 0:09:44]} 23. Rad1 {[%emt 0:01:22]} g5 {[%emt 0:07:08]} 24. Nh5 {[%emt 0:04:25]} Bh6 {[%emt 0:01:09]} 25. Bb3 {[%emt 0:01:52]} Qc6 {[%emt 0:02:48]} 26. Qg3 {[%emt 0:03:11]} Nc4 {[%emt 0:06:31]} 27. Nxf6+ {[%emt 0:12:39]} Rxf6 {[%emt 0:08:23]} 28. Bxg5 {[%emt 0:00:15]} Bxg5 {[%emt 0:00:31]} 29. Qxg5+ {[%emt 0:00:11]} Ng6 {[%emt 0:01:15]} 30. Rxd5 {[%emt 0:05:32]} Ne3 {[%emt 0:00:06]} 31. Rd8+ {[%emt 0:00:34]} 1-0

[Event "93rd German Championship 2022"]
[Site "Magdeburg"]
[Date "2022.08.17"]
[Round "5.20"]
[White "Cofmann, Veaceslav"]
[Black "Feidt, Jonas"]
[Result "1-0"]
[ECO "D35"]
[WhiteElo "2301"]
[BlackElo "1901"]
[Annotator "TA"]
[PlyCount "115"]
[EventDate "2022.08.14"]
[EventType "swiss"]
[EventCountry "GER"]
[SourceTitle "playchess.com"]
[Source "ChessBase"]
[SourceQuality "1"]
[TimeControl "40/5400+30:1800+30"]

{[%evp 20,115,32,19,35,-23,23,25,25,-24,-13,-17,0,-1,-23,0,0,-31,-29,-36,0,0,0,-22,0,0,0,0,0,-25,0,-87,-81,-74,-87,-81,0,0,0,0,0,0,0,0,0,0,0,0,8,8,8,0,28,0,125,129,120,122,113,60,127,16,177,159,177,162,210,220,233,223,248,245,311,0,259,309,273,167,305,312,416,413,604,288,772,775,29981,337,992,976,1161,1138,1106,1081,29970,29970,29980,29981]} 1. d4 {[%emt 0:00:05]} Nf6 {[%emt 0:00:11]} 2. c4 {[%emt 0:00:05]} e6 {[%emt 0:00:16]} 3. Bf4 {[%emt 0:00:07]} d5 {[%emt 0:00:41]} 4. Nc3 {[%emt 0:00:22]} c6 {[%emt 0:00:25]} 5. e3 {[%emt 0:00:14]} Nbd7 {[%emt 0:00:23]} 6. cxd5 {[%emt 0:00:30]} exd5 {[%emt 0:00:10]} 7. Bd3 {[%emt 0:00:09]} Be7 {[%emt 0:00:42]} 8. h3 {[%emt 0:00:09]} O-O {[%emt 0:00:39]} 9. Qc2 {[%emt 0:00:09]} Re8 {[%emt 0:02:45]} 10. Nf3 {[%emt 0:00:26]} Nf8 {[%emt 0:02:01]} 11. Ne5 {[%emt 0:00:16]} Bd6 {[%emt 0:03:03] D35: Queen's Gambit Declined: Exchange Variation.} 12. Bh2 {[%emt 0:06:26]} (12. O-O-O $14) 12... Qe7 {[%emt 0:22:56]} (12... c5 {might be stronger.}) 13. O-O $11 {[%emt 0:02:22]} N6d7 {[%emt 0:10:08][%cal Rd7e5] White has an edge.} 14. f4 {[%emt 0:07:35]} (14. Ng4 {should be considered.}) 14... f6 {[%emt 0:09:17] [#]} 15. Nf3 $146 {[%emt 0:00:45]} ({Predecessor:} 15. e4 fxe5 16. fxe5 Nxe5 17. dxe5 Bxe5 18. exd5 Bxh2+ 19. Kxh2 Qe5+ 20. Kh1 cxd5 21. Qf2 {1-0 (28) Tkachiev,V (2657)-Riazantsev,A (2628) France 2008}) 15... Qxe3+ {[%emt 0:01:30]} 16. Kh1 {[%emt 0:00:08]} Qe7 {[%emt 0:00:23]} (16... Bxf4 $2 17. Rae1 Qxe1 18. Rxe1 Rxe1+ 19. Nxe1 Bxh2 20. Kxh2 $18) 17. Rae1 {[%emt 0:01:22]} Qf7 {[%emt 0:00:21]} 18. Rxe8 {[%emt 0:06:34]} Qxe8 {[%emt 0:00:12]} 19. Re1 {[%emt 0:00:16]} Qf7 {[%emt 0:00:21]} 20. g4 $1 {[%emt 0:10:42]} Nb6 {[%emt 0:03:19]} 21. f5 {[%emt 0:00:46]} Bxh2 {[%emt 0:00:46]} 22. Qxh2 {[%emt 0:00:11]} Bd7 {[%emt 0:05:03]} 23. Qc7 {[%emt 0:07:11]} Be6 {[%emt 0:05:36]} 24. Qd6 {[%emt 0:00:54]} Bd7 {[%emt 0:00:38]} (24... Qd7 $5 {[%cal Rd7d6]} 25. Qa3 (25. Rxe6 Nxe6 26. Qxe6+ Qxe6 $15) 25... Bf7 $11) 25. a4 {[%emt 0:07:21]} (25. Qc7 $11) 25... Re8 $17 {[%emt 0:07:24]} 26. a5 {[%emt 0:04:22]} Rxe1+ {[%emt 0:01:30]} 27. Nxe1 {[%emt 0:00:07]} Nc4 {[%emt 0:01:30]} (27... Nc8 $17 28. Qf4 h5) 28. Bxc4 $11 {[%emt 0:00:56]} dxc4 {[%emt 0:00:03]} 29. Ng2 {[%emt 0:01:00]} b5 {[%emt 0:04:24]} 30. a6 {[%emt 0:12:48]} Be8 {[%emt 0:04:39]} 31. Qc5 {[%emt 0:02:47]} Qd7 {[%emt 0:01:32]} 32. Nf4 {[%emt 0:01:04]} Bf7 {[%emt 0:00:39][%cal Ob5b4]} 33. d5 {[%emt 0:00:59]} Bxd5+ {[%emt 0:02:19]} 34. Nfxd5 {[%emt 0:00:22]} cxd5 {[%emt 0:00:07]} 35. Nxb5 {[%emt 0:00:29][%mdl 4096] Endgame KQN-KQN} g6 {[%emt 0:02:04]} 36. Nxa7 {[%emt 0:01:29]} d4 {[%emt 0:05:49]} (36... Qa4 $1 $11 37. Qxd5+ Kg7) 37. Qxc4+ $16 {[%emt 0:04:14]} Kg7 {[%emt 0:00:01]} 38. Nb5 $36 {[%emt 0:00:22][%mdl 2048] White is on the roll. White is more active.} d3 {[%emt 0:00:10]} 39. Nc3 {[%emt 0:00:29]} (39. Nd4 $1 $16 d2 40. Qd3) 39... d2 $14 {[%emt 0:00:59] [#]} 40. Qe2 {[%emt 0:02:49]} (40. Nd1 $1 $16) 40... Qd4 $2 {[%emt 0:04:58] [#]} (40... Qc6+ $11 {and Black stays safe.} 41. Kh2 Qd6+ 42. Kg2 Qc6+ 43. Kg3 Qd6+ 44. Kg2 Qc6+ 45. Kg3 Qd6+ 46. Kg2) 41. Nd1 $1 $18 {[%emt 0:32:23]} Nd7 {[%emt 0:08:15]} 42. Qe7+ {[%emt 0:00:00]} Kg8 {[%emt 0:00:11]} (42... Kh6 {keeps fighting.}) 43. Qe3 {[%emt 0:00:00]} (43. fxg6 $6 hxg6 44. Qe6+ Kg7 $16) 43... Qd5+ {[%emt 0:01:25]} 44. Kg1 {[%emt 0:00:00] Black must now prevent a7.} Ne5 {[%emt 0:01:15]} 45. a7 {[%emt 0:00:00]} Kg7 {[%emt 0:01:27]} 46. b3 $2 {[%emt 0:00:00]} (46. b4 $18) 46... Nf3+ $2 {[%emt 0:04:37][%mdl 8192]} (46... g5 $11 {and Black has nothing to worry.}) 47. Kf2 {[%emt 0:00:00]} Ne5 {[%emt 0:01:14]} 48. Ke2 {[%emt 0:00:00] Threatens to win with g5. The board is on fire.} gxf5 {[%emt 0:01:21]} (48... Qb7 {might work better.} 49. g5 (49. Kxd2 Nc6 $16) 49... Nc6 50. gxf6+ (50. Kxd2 fxg5 51. Qc3+ Kh6 $18) 50... Kxf6 51. Qe6+ (51. Kxd2 Qd7+ 52. Kc1 Nxa7 $16) 51... Kg5) 49. gxf5 {[%emt 0:00:00]} h5 {[%emt 0:00:45]} 50. Nf2 {[%emt 0:00:00]} Kh7 {[%emt 0:01:33]} (50... d1=R $142 51. Nxd1 Qb7) 51. Qxd2 {[%emt 0:00:00]} (51. Kd1 $142 {Ne4 is the strong threat.} Qc6 52. Nd3) 51... Qf3+ {[%emt 0:00:18]} (51... Qb5+ 52. Nd3 (52. Kd1 Qxb3+ 53. Ke2 Qb5+ 54. Nd3 Qa6 $16) 52... Qa6) 52. Kf1 {[%emt 0:00:00] Threatening mate with Qd8.} Kg7 {[%emt 0:00:34]} 53. Qe2 $2 {[%emt 0:00:00]} (53. Qd8 {mates} Nd3 54. Qxd3 Qc6 55. Qg3+ Kf7 56. Qb8 Qc1+ 57. Kg2 Qc6+ 58. Kg1) 53... Qc6 $2 {[%emt 0:00:36]} (53... Qb7 54. Qe3 Nc6 55. Qg3+ Kh8) 54. Ne4 {[%emt 0:00:00]} Qc1+ {[%emt 0:01:05]} 55. Kg2 {[%emt 0:00:00]} Qc6 {[%emt 0:00:08]} 56. Kh2 {[%emt 0:00:00]} Qd5 {[%emt 0:00:44]} 57. Qg2+ {[%emt 0:00:00]} Kf8 {[%emt 0:01:18]} 58. Nd2 {[%emt 0:00:00] Weighted Error Value: White=0.47/Black=0.82} 1-0

[Event "93rd German Championship 2022"]
[Site "Magdeburg"]
[Date "2022.08.17"]
[Round "5.21"]
[White "Burian, Simon"]
[Black "Koehler, Christian Friedrich"]
[Result "1/2-1/2"]
[ECO "C97"]
[WhiteElo "2189"]
[BlackElo "2285"]
[Annotator "NA RC"]
[PlyCount "116"]
[EventDate "2022.08.14"]
[EventType "swiss"]
[EventCountry "GER"]
[SourceTitle "playchess.com"]
[Source "ChessBase"]
[SourceQuality "1"]
[TimeControl "40/5400+30:1800+30"]

1. e4 {[%emt 0:00:04]} e5 {[%emt 0:00:05]} 2. Nf3 {[%emt 0:00:09]} Nc6 {[%emt 0:00:06]} 3. Bb5 {[%emt 0:00:10]} a6 {[%emt 0:00:06]} 4. Ba4 {[%emt 0:00:06]} Nf6 {[%emt 0:00:06]} 5. O-O {[%emt 0:00:13]} Be7 {[%emt 0:00:06]} 6. Re1 {[%emt 0:00:11]} b5 {[%emt 0:00:17]} 7. Bb3 {[%emt 0:00:07]} d6 {[%emt 0:00:13]} 8. c3 {[%emt 0:00:34]} O-O {[%emt 0:00:08]} 9. h3 {[%emt 0:00:11]} Na5 {[%emt 0:01:07]} 10. Bc2 {[%emt 0:00:06]} c5 {[%emt 0:00:05]} 11. d4 {[%emt 0:02:12]} Qc7 {[%emt 0:00:17]} 12. d5 {[%emt 0:00:27]} Bd7 {[%emt 0:03:13]} 13. Nbd2 {[%emt 0:03:31]} g6 {[%emt 0:00:25]} 14. Nf1 {[%emt 0:09:52]} Ne8 {[%emt 0:00:11]} 15. Ng3 {[%emt 0:09:09]} Ng7 {[%emt 0:00:21]} 16. Bh6 {[%emt 0:03:19]} b4 {[%emt 0:02:59]} 17. cxb4 {[%emt 0:05:32]} cxb4 {[%emt 0:00:07]} 18. Rc1 {[%emt 0:00:16]} Rfc8 {[%emt 0:05:26]} 19. Bd3 {[%emt 0:05:59]} Qb7 {[%emt 0:02:18]} 20. Qe2 {[%emt 0:03:00]} Bd8 {[%emt 0:13:31]} 21. b3 {[%emt 0:04:42]} Bb6 {[%emt 0:02:49]} 22. Rxc8+ {[%emt 0:03:51]} Bxc8 {[%emt 0:01:59]} 23. Rc1 {[%emt 0:07:17]} Qa7 {[%emt 0:16:51]} 24. Qd2 {[%emt 0:03:44]} Bc5 {[%emt 0:02:02]} 25. Rc2 {[%emt 0:03:21]} f6 {[%emt 0:00:12]} 26. Nh4 {[%emt 0:05:48]} Nb7 {[%emt 0:06:42]} 27. Nf1 {[%emt 0:04:32]} Bd7 {[%emt 0:03:48]} 28. g4 {[%emt 0:02:30]} Rf8 {[%emt 0:07:29]} 29. Qe2 {[%emt 0:03:21]} Ra8 {[%emt 0:05:16]} 30. Kg2 {[%emt 0:04:47]} Qb6 {[%emt 0:00:21]} 31. Qf3 {[%emt 0:03:39]} Rf8 {[%emt 0:00:17]} 32. Qg3 {[%emt 0:00:32]} a5 {[%emt 0:01:49]} 33. Ne3 {[%emt 0:03:27]} a4 {[%emt 0:01:32]} 34. Nc4 {[%emt 0:01:02]} Qa7 {[%emt 0:04:31]} 35. Bxg7 {[%emt 0:02:29]} Kxg7 {[%emt 0:00:06]} 36. f4 {[%emt 0:00:46]} Na5 {[%emt 0:04:33]} 37. Nxa5 {[%emt 0:01:05]} Qxa5 {[%emt 0:00:11]} 38. Nf3 {[%emt 0:00:28]} axb3 {[%emt 0:00:38]} 39. axb3 {[%emt 0:00:05]} Qa1 {[%emt 0:00:29]} 40. Re2 {[%emt 0:04:42]} h6 {[%emt 0:11:09]} 41. h4 {[%emt 0:04:09]} Ra8 {[%emt 0:05:52]} 42. g5 {[%emt 0:04:35]} hxg5 {[%emt 0:00:28]} 43. hxg5 {[%emt 0:00:26]} exf4 {[%emt 0:00:22]} 44. Qxf4 {[%emt 0:00:14]} Rh8 {[%emt 0:00:57]} 45. Qxf6+ {[%emt 0:00:42]} Qxf6 {[%emt 0:00:06]} 46. gxf6+ {[%emt 0:00:04]} Kxf6 {[%emt 0:00:09]} 47. e5+ {[%emt 0:00:27]} dxe5 {[%emt 0:00:06]} 48. Nxe5 {[%emt 0:00:12]} Bh3+ {[%emt 0:05:14]} 49. Kf3 {[%emt 0:00:33]} Bf5 {[%emt 0:02:51]} 50. Kg2 {[%emt 0:09:57]} Rd8 {[%emt 0:10:16]} 51. Bc4 {[%emt 0:01:34]} Bd6 {[%emt 0:00:07]} 52. Nf3 {[%emt 0:00:25]} g5 {[%emt 0:01:18]} 53. Nd4 {[%emt 0:00:34]} Bd7 {[%emt 0:00:13]} 54. Ne6 {[%emt 0:00:22]} Rg8 {[%emt 0:00:36]} 55. Rf2+ {[%emt 0:00:48]} Ke5 {[%emt 0:01:22]} 56. Re2+ {[%emt 0:00:25]} Kf6 {[%emt 0:05:06]} 57. Rf2+ {[%emt 0:00:07]} Ke5 {[%emt 0:00:30]} 58. Re2+ {[%emt 0:00:05]} Kf6 1/2-1/2

[Event "93rd German Championship 2022"]
[Site "Magdeburg"]
[Date "2022.08.17"]
[Round "5.22"]
[White "Eichstaedt, Mirko"]
[Black "Bracker, Arne"]
[Result "0-1"]
[ECO "A49"]
[WhiteElo "2223"]
[BlackElo "2277"]
[Annotator "NA RC"]
[PlyCount "74"]
[EventDate "2022.08.14"]
[EventType "swiss"]
[EventCountry "GER"]
[SourceTitle "playchess.com"]
[Source "ChessBase"]
[SourceQuality "1"]
[TimeControl "40/5400+30:1800+30"]

1. d4 Nf6 2. Nf3 g6 3. g3 Bg7 4. Bg2 d5 5. O-O O-O 6. c4 dxc4 7. Na3 c3 8. bxc3 c5 9. Ne5 Nc6 10. Nxc6 bxc6 11. Nc4 Nd5 12. Qd2 Nxc3 13. Ne5 Bxe5 14. dxe5 Qxd2 15. Bxd2 Nxe2+ 16. Kh1 Ba6 17. Rfe1 Nd4 18. Rac1 c4 19. Bb4 Rfe8 20. Bf1 Rab8 21. Bc5 Ne6 22. Bxa7 Rb2 23. a4 c5 24. Bxc4 Bxc4 25. Rxc4 Rb7 26. Bxc5 Rc8 27. Rb4 Nxc5 28. Rxb7 Nxb7 29. Rb1 Na5 30. Rb5 Rc1+ 31. Kg2 Nc6 32. f4 Rc2+ 33. Kh3 h5 34. a5 Ra2 35. a6 Rxa6 36. Kh4 Kg7 37. h3 Nd4 0-1